bitfinex/quotes_ETHUSD_20240707
["timestamp","ask_amount","ask_price","bid_price","bid_amount"]
[1720369486881,1.05489855,2984.9,2984.8,2.34516]
[1720369489399,1.05489855,2984.9,2984.7,2.34524]
[1720369489785,1.05489855,2984.8,2984.7,2.34524]
[1720369489989,1.40596531,2984.9,2984.7,2.34524]
[1720369489990,1.40596531,2984.9,2984.7,4.69048]
[1720369490296,1.40596531,2984.9,2984.7,2.34524]
[1720369490491,1.40596531,2984.8,2984.7,2.34524]
[1720369490740,1.40596531,2984.9,2984.8,2.34521]
[1720369490898,3.64876037,2984.9,2984.8,2.34521]
[1720369491493,2.48810521,2984.9,2984.8,2.34521]
[1720369491801,3.64875399,2984.9,2984.8,2.34521]
[1720369492109,2.56661409,2984.9,2984.8,2.34521]
[1720369494287,2.56661409,2984.9,2984.6,2.3453]
[1720369494482,1.05507101,2984.7,2984.6,2.3453]
[1720369494931,2.56666215,2984.7,2984.6,2.3453]
[1720369495622,2.24290675,2984.7,2984.3,2.34556]
[1720369495812,1.05514579,2984.4,2984.3,2.34556]
[1720369496127,2.56767438,2984.4,2984.3,2.34556]
[1720369497118,1.16081332,2984.4,2984.3,2.34556]
[1720369497288,1.40686106,2984.5,2984.3,2.34556]
[1720369497489,1.40686106,2984.5,2984.1,2.34572]
[1720369497490,1.40686106,2984.5,2984.2,2.34568]
[1720369497794,1.05487106,2984.3,2984.2,2.34568]
[1720369498003,1.05488302,2984.3,2984.2,2.34568]
[1720369498446,1.05480205,2984.4,2984.1,2.34569]
[1720369498594,2.98060134,2984.2,2983.7,4.69205]
[1720369498933,0.70320134,2984.0,2983.9,2.34591]
[1720369499133,2.5674509,2984.0,2983.9,2.34591]
[1720369499609,1.05458925,2984.0,2983.9,2.34591]
[1720369499802,2.56750251,2984.0,2983.9,2.34591]
[1720369500007,2.56750251,2984.0,2983.7,4.692]
[1720369500200,2.56750251,2984.0,2983.7,2.346]
[1720369500201,1.05463278,2983.9,2983.7,2.346]
[1720369500397,1.05463278,2983.8,2983.7,2.346]
[1720369501026,1.40652072,2983.9,2983.5,2.34621]
[1720369501193,1.05479672,2983.7,2983.5,2.34621]
[1720369501444,1.05479672,2983.6,2983.5,2.34621]
[1720369501590,1.05479672,2983.7,2983.5,2.34621]
[1720369501831,0.70291441,2983.6,2983.5,2.34621]
[1720369502008,6.33219672,2983.6,2983.3,2.34635]
[1720369502195,1.05479672,2983.5,2983.4,2.34631]
[1720369503412,1.05396722,2983.5,2983.4,2.34631]
[1720369503729,6.33136722,2983.6,2983.2,2.34642]
[1720369503898,0.70228308,2983.5,2983.2,2.34642]
[1720369504098,0.70228308,2983.3,2983.2,2.34642]
[1720369504286,0.70228308,2983.5,2983.2,4.69283]
[1720369504498,0.70228308,2983.5,2983.2,2.34641]
[1720369504689,0.70228308,2983.5,2983.2,4.69282]
[1720369505196,0.70228308,2983.5,2983.3,2.34639]
[1720369505813,0.70228308,2983.5,2983.2,2.34641]
[1720369506657,0.70228308,2983.5,2983.1,2.34653]
[1720369507597,0.70228308,2983.5,2982.8,2.34677]
[1720369507902,0.70228308,2983.4,2982.9,2.34668]
[1720369508222,0.70228308,2983.3,2982.9,2.34668]
[1720369508402,0.70228308,2983.4,2982.9,2.34668]
[1720369509042,0.70228308,2983.4,2982.7,2.34679]
[1720369509362,0.70228308,2983.4,2982.9,2.34669]
[1720369509496,0.70228308,2983.4,2983.0,2.34662]
[1720369511329,0.70228308,2983.5,2983.0,2.34662]
[1720369512315,8.32589308,2983.6,2983.0,2.34662]
[1720369512530,0.70228308,2983.5,2983.0,2.34662]
[1720369513234,8.32589308,2983.6,2983.0,2.34662]
[1720369513412,7.62361,2983.6,2983.0,2.34662]
[1720369513614,5.2774,2983.6,2983.0,2.34662]
[1720369513954,5.2774,2983.6,2983.3,2.34636]
[1720369514733,0.70228308,2983.8,2983.1,2.32904028]
[1720369514947,9.7274,2983.9,2983.6,2.34615]
[1720369516348,7.45,2983.9,2983.8,2.346]
[1720369516559,2.2774,2984.2,2983.8,2.346]
[1720369518930,0.69995855,2984.3,2984.0,2.34581]
[1720369519132,3.0,2984.3,2984.0,2.3458]
[1720369519841,3.0,2984.3,2983.8,2.34595]
[1720369520165,3.69995855,2984.3,2983.8,2.34595]
[1720369520879,3.0,2983.7,2983.2,2.34642]
[1720369521028,3.0,2983.7,2983.3,2.34635]
[1720369522266,3.0,2983.7,2983.4,2.34627]
[1720369522424,13.57015855,2984.0,2983.6,2.34615]
[1720369522622,12.8702,2984.0,2983.6,2.34615]
[1720369522945,13.57015855,2984.0,2983.6,2.34615]
[1720369523163,12.8702,2984.0,2983.6,2.34615]
[1720369523368,1.16113777,2983.9,2983.6,2.34615]
[1720369523527,13.57015855,2984.0,2983.6,2.34615]
[1720369523768,1.16115617,2983.9,2983.6,2.34615]
[1720369524069,1.16116687,2983.8,2983.4,2.34629]
[1720369524262,13.57015855,2984.0,2983.5,2.34618]
[1720369524453,1.16117644,2983.9,2983.5,2.34618]
[1720369524656,1.16117644,2983.8,2983.5,2.34618]
[1720369524839,13.57015855,2984.0,2983.5,2.34618]
[1720369525040,1.16115853,2983.9,2983.5,2.34618]
[1720369525254,1.16115853,2983.8,2983.6,2.34615]
[1720369525586,13.57015855,2984.0,2983.6,2.34615]
[1720369525741,1.16114392,2983.9,2983.6,2.34615]
[1720369525946,13.57015855,2984.0,2983.6,2.34615]
[1720369525947,1.16114392,2983.8,2983.6,2.34615]
[1720369526148,13.57015855,2984.0,2983.6,2.34615]
[1720369526395,1.16114842,2983.9,2983.6,2.34615]
[1720369526569,1.16114842,2983.8,2983.6,2.34615]
[1720369526777,1.16114842,2983.9,2983.6,2.34615]
[1720369527058,1.16114842,2983.9,2983.4,4.69253]
[1720369527263,1.16117103,2983.8,2983.5,2.34622]
[1720369527460,1.16117103,2983.7,2983.2,2.34642]
[1720369527669,1.16117103,2983.6,2983.2,2.34642]
[1720369527855,1.16117103,2983.8,2983.4,2.34626]
[1720369528181,1.16117103,2983.8,2983.5,2.34619]
[1720369528480,1.16117103,2983.8,2983.4,2.34626]
[1720369528680,1.16117103,2983.9,2983.6,2.34615]
[1720369528984,13.57015855,2984.0,2983.6,2.34615]
[1720369528985,1.16117103,2983.8,2983.6,2.34615]
[1720369529181,1.16115114,2983.7,2983.6,2.34615]
[1720369531372,13.57015855,2984.0,2983.9,4.69184]
[1720369531373,7.45,2984.0,2983.9,4.69184]
[1720369531575,3.69995855,2984.3,2983.9,2.34587]
[1720369531789,1.16093839,2984.2,2983.9,4.69174]
[1720369531957,1.16093839,2984.2,2983.9,2.34587]
[1720369532292,1.16093839,2984.2,2983.4,4.60829]
[1720369532293,2.4202,2983.9,2983.5,2.34617]
[1720369532457,2.4202,2983.9,2983.6,2.34612]
[1720369532657,1.16103139,2983.8,2983.6,2.34612]
[1720369534084,1.86098994,2983.8,2983.4,2.34626]
[1720369534269,1.16103139,2983.7,2983.5,2.34617]
[1720369534983,1.16103139,2983.7,2983.4,2.34626]
[1720369535179,4.16103139,2983.7,2983.2,2.34639]
[1720369535388,1.16103139,2983.6,2983.2,2.34639]
[1720369535605,1.16121522,2983.5,2983.2,2.34639]
[1720369535766,0.69995855,2983.6,2983.2,2.34639]
[1720369535959,0.69995855,2983.6,2983.3,2.34638]
[1720369536284,1.16121181,2983.5,2983.3,2.34638]
[1720369536583,0.69995855,2983.6,2983.3,2.34638]
[1720369536788,2.4202,2983.4,2983.0,2.34658]
[1720369537102,0.69995855,2983.2,2983.0,2.34658]
[1720369537592,1.86128491,2983.1,2982.8,4.69345]
[1720369537787,1.86128491,2983.0,2982.8,4.69345]
[1720369537972,0.69995855,2983.0,2982.9,2.3467]
[1720369538501,1.86136142,2983.0,2982.9,2.3467]
[1720369538721,0.69995855,2983.0,2982.9,2.3467]
[1720369538859,1.86132452,2983.0,2982.9,2.3467]
[1720369540366,2.2113038,2983.0,2982.9,2.3467]
[1720369540595,1.04993783,2983.1,2982.9,2.3467]
[1720369540961,2.21130986,2983.0,2982.9,2.3467]
[1720369541161,1.04993783,2983.1,2982.9,2.3467]
[1720369541459,1.04993783,2983.0,2982.9,2.3467]
[1720369542108,2.211323,2983.0,2982.9,2.3467]
[1720369542311,1.16138517,2983.0,2982.9,2.3467]
[1720369542478,1.05474355,2983.0,2982.9,2.3467]
[1720369542799,1.16140642,2983.0,2982.9,2.3467]
[1720369543168,1.16140642,2983.0,2982.7,2.34681]
[1720369543367,1.05499755,2982.9,2982.7,2.34681]
[1720369543574,1.05499755,2982.9,2982.8,2.34678]
[1720369543785,1.05499755,2982.9,2982.8,5.162919]
[1720369543993,0.70328836,2982.9,2982.8,5.162919]
[1720369546193,1.05499755,2983.0,2982.9,2.3467]
[1720369546908,1.39991711,2983.1,2983.0,2.34663]
[1720369547265,2.56128193,2983.1,2982.8,2.34673]
[1720369547466,1.05540554,2982.9,2982.8,2.34673]
[1720369548303,5.4202,2983.4,2982.8,2.34673]
[1720369548603,1.0554085,2982.9,2982.6,2.34688]
[1720369548775,0.70358855,2982.7,2982.6,2.34688]
[1720369548986,1.0554085,2982.8,2982.7,2.34686]
[1720369549499,1.0554085,2982.8,2982.1,4.60933]
[1720369549500,1.0554085,2982.8,2982.5,2.34696]
[1720369549815,1.0554085,2982.7,2982.5,2.34696]
[1720369550389,0.70355422,2982.6,2982.5,2.34696]
[1720369550628,1.0554085,2982.7,2982.5,2.34696]
[1720369551176,1.0554085,2982.6,2982.5,2.34696]
[1720369551699,1.0554085,2982.7,2982.5,2.34696]
[1720369552317,0.70340876,2982.6,2982.5,2.34696]
[1720369555118,1.0554085,2982.7,2982.3,2.34711]
[1720369555400,1.40721133,2982.8,2982.3,2.34711]
[1720369555401,0.7032322,2982.4,2982.3,2.34711]
[1720369555708,1.0548483,2982.5,2982.3,2.34711]
[1720369555880,0.70313186,2982.4,2982.3,2.34711]
[1720369556302,0.70313186,2982.4,2982.2,2.34725]
[1720369556619,0.70313186,2982.3,2982.1,2.34732]
[1720369556766,0.70301403,2982.3,2982.1,2.34732]
[1720369557680,0.70301403,2982.2,2982.1,2.34732]
[1720369558714,1.0548483,2982.2,2981.7,2.34764]
[1720369559009,0.70280182,2981.9,2981.3,0.06707801]
[1720369559203,0.70280182,2981.8,2981.6,2.34767]
[1720369559373,0.70280182,2981.9,2981.6,2.34767]
[1720369559579,0.70280182,2981.8,2981.6,2.34767]
[1720369560000,0.70280182,2981.9,2981.6,2.34767]
[1720369560275,1.0548483,2982.1,2981.9,2.34749]
[1720369560496,1.0548483,2982.1,2982.0,4.69482]
[1720369560497,0.70241218,2982.1,2982.0,4.69482]
[1720369561155,0.70238916,2982.3,2982.2,2.34726]
[1720369561295,0.70235235,2982.3,2982.2,2.34726]
[1720369561495,0.70235235,2982.3,2982.2,2.816727]
[1720369561813,0.70235235,2982.5,2982.4,4.6942]
[1720369562107,0.70227243,2982.6,2982.5,2.34702]
[1720369562584,2.4895,2982.8,2982.3,2.34718]
[1720369562905,0.70229438,2982.4,2982.3,2.34718]
[1720369563684,2.4895,2982.8,2982.3,2.34718]
[1720369563892,0.70233858,2982.4,2982.1,2.34731]
[1720369564097,1.05350787,2982.5,2981.9,2.34745]
[1720369564098,2.4895,2982.2,2981.9,2.34744]
[1720369564310,3.19183858,2982.2,2982.0,2.3474]
[1720369565018,0.70233858,2982.2,2982.1,4.69466]
[1720369565339,3.54300787,2982.5,2982.3,2.34718]
[1720369565482,1.16162684,2982.4,2982.3,2.34718]
[1720369565670,1.86396507,2982.4,2982.2,2.34725]
[1720369565876,0.70232542,2982.3,2982.2,2.34725]
[1720369566077,0.70232542,2982.3,2982.0,2.34736]
[1720369566491,0.70232542,2982.1,2982.0,2.34736]
[1720369567790,0.70232542,2982.2,2982.0,2.34736]
[1720369568906,0.70232542,2982.1,2981.8,2.34751]
[1720369569083,4.05350787,2982.3,2981.8,2.34751]
[1720369569084,0.70232542,2982.0,2981.8,2.34751]
[1720369569515,0.70232542,2982.0,2981.8,4.69503]
[1720369569905,0.70232542,2982.0,2981.9,2.34749]
[1720369570097,0.70217486,2982.0,2981.9,2.34749]
[1720369570426,0.70217486,2982.1,2982.0,2.34741]
[1720369570595,0.70217486,2982.2,2982.0,2.34741]
[1720369570982,0.70217486,2982.2,2982.1,2.34733]
[1720369571300,0.70217486,2982.3,2982.2,2.34726]
[1720369571490,0.70217486,2982.4,2982.2,2.34726]
[1720369571686,0.70217486,2982.4,2982.3,2.34718]
[1720369571898,0.70217486,2982.4,2982.3,4.69436]
[1720369572098,8.50326229,2982.6,2982.3,0.469436]
[1720369572099,7.45,2982.6,2982.3,0.469436]
[1720369572313,7.45,2982.6,2982.1,0.06705612]
[1720369572500,7.45,2982.6,2982.5,4.69404]
[1720369572693,0.70217486,2982.8,2982.6,2.34688]
[1720369572899,0.70217486,2982.7,2982.6,2.34688]
[1720369573220,0.70217486,2982.7,2982.6,4.69382]
[1720369573518,1.05326229,2982.9,2982.7,2.34686]
[1720369573519,0.70217486,2982.8,2982.7,2.34686]
[1720369573738,0.7020559,2982.8,2982.7,2.34686]
[1720369574017,0.7020559,2982.8,2982.7,4.69372]
[1720369574219,0.7020559,2983.0,2982.9,2.3467]
[1720369574383,1.16139702,2983.0,2982.8,2.34678]
[1720369574584,0.70208599,2983.0,2982.9,2.3467]
[1720369574784,0.70208599,2983.0,2982.9,4.6934]
[1720369575007,8.15208599,2983.1,2983.0,2.34663]
[1720369575483,8.61136356,2983.1,2983.0,2.34663]
[1720369576128,9.66444741,2983.1,2983.0,2.34663]
[1720369576417,8.50308385,2983.1,2983.0,2.34663]
[1720369576621,0.70222105,2983.1,2983.0,2.34663]
[1720369576796,0.70222105,2983.2,2983.1,2.34655]
[1720369578024,0.70222105,2983.2,2983.1,4.6931]
[1720369578201,0.70222105,2983.3,2983.2,4.69294]
[1720369578406,0.70222105,2983.4,2983.3,2.34639]
[1720369578601,1.05308385,2983.5,2983.4,2.34631]
[1720369578790,8.50308385,2983.6,2983.4,2.34631]
[1720369579717,0.70243492,2983.5,2983.4,2.34631]
[1720369579923,0.70243492,2983.5,2983.2,2.34641]
[1720369580118,0.70245907,2983.3,2983.2,2.34641]
[1720369580496,0.70245907,2983.3,2983.1,2.34654]
[1720369580696,0.70255491,2983.2,2983.1,2.34654]
[1720369581107,0.70255491,2983.2,2982.9,2.34667]
[1720369581108,0.70255491,2983.2,2982.9,2.34666]
[1720369581336,0.70255491,2983.1,2982.9,2.34666]
[1720369581628,0.70255491,2983.1,2982.4,2.3471]
[1720369581629,0.70255491,2983.1,2983.0,2.34663]
[1720369582396,0.70255491,2983.1,2983.0,4.69326]
[1720369582605,0.70255491,2983.3,2983.1,2.34655]
[1720369582933,0.70255491,2983.2,2983.1,4.6931]
[1720369583176,3.70255491,2983.3,2983.2,2.34647]
[1720369583288,0.70255491,2983.3,2983.2,4.69294]
[1720369583490,0.70255491,2983.4,2983.3,2.34639]
[1720369585294,0.70255491,2983.4,2983.3,4.69278]
[1720369585623,0.70255491,2983.5,2983.4,2.34631]
[1720369586031,11.50362906,2983.6,2983.5,2.34623]
[1720369586398,10.45,2983.6,2983.5,2.34623]
[1720369587505,11.15223649,2983.6,2983.5,2.34623]
[1720369587902,8.15223649,2983.6,2983.5,4.69246]
[1720369588115,8.15223649,2983.6,2983.5,5.161706]
[1720369588304,0.70223649,2983.8,2983.6,2.34615]
[1720369588519,0.70223649,2983.8,2983.7,4.69216]
[1720369588900,0.70223649,2983.8,2983.7,4.75918385]
[1720369589217,0.70223649,2983.8,2983.7,4.69216]
[1720369589401,0.70223649,2983.9,2983.8,4.692]
[1720369589811,0.70223649,2983.9,2983.8,7.1050238]
[1720369590002,0.70223649,2984.0,2983.9,4.69184]
[1720369590200,0.70223649,2984.0,2983.9,8.10984055]
[1720369590407,8.15223649,2984.1,2984.0,4.69168]
[1720369591514,0.70223649,2984.1,2984.0,4.69168]
[1720369592699,1.05206988,2984.2,2984.1,2.34574]
[1720369594514,3.0,2984.1,2983.8,2.34596]
[1720369594719,3.7011167,2984.1,2983.8,2.34596]
[1720369595607,6.13299557,2984.1,2983.8,2.34596]
[1720369595807,6.13299557,2984.1,2984.0,2.34584]
[1720369596436,6.13299557,2984.1,2983.8,4.6919]
[1720369596628,5.432,2984.1,2983.8,4.6919]
[1720369597533,5.432,2984.1,2983.9,2.34591]
[1720369598242,5.432,2984.1,2984.0,2.34584]
[1720369598655,5.432,2984.1,2983.8,4.69188]
[1720369598859,5.432,2984.1,2983.9,2.3459]
[1720369599726,5.432,2984.1,2983.3,3.0]
[1720369599928,5.432,2984.1,2983.7,2.34602]
[1720369600123,5.432,2984.1,2983.6,2.34612]
[1720369600732,6.13299557,2984.1,2983.6,2.34612]
[1720369601216,1.16109059,2984.0,2983.6,2.34612]
[1720369601457,6.13299557,2984.1,2983.6,2.34612]
[1720369601646,1.1610914,2984.0,2983.6,2.34612]
[1720369601957,6.13299557,2984.1,2983.7,2.34607]
[1720369602262,1.16107201,2984.0,2983.7,2.34607]
[1720369602431,6.13299557,2984.1,2983.7,2.34607]
[1720369602629,1.16107391,2984.0,2983.8,2.34598]
[1720369602841,6.13299557,2984.1,2983.9,2.34592]
[1720369602842,5.432,2984.1,2983.9,2.34592]
[1720369605221,5.432,2984.1,2983.7,2.34601]
[1720369605570,1.1610348,2984.0,2983.7,2.34601]
[1720369605864,5.432,2984.1,2983.8,2.34598]
[1720369606063,1.16103723,2984.0,2983.8,2.34598]
[1720369606218,5.432,2984.1,2983.8,2.34598]
[1720369606564,1.16103757,2984.0,2983.8,2.34598]
[1720369606743,1.16103757,2983.9,2983.8,2.34598]
[1720369606912,5.432,2984.1,2983.8,2.34598]
[1720369606913,1.16103757,2984.0,2983.8,2.34598]
[1720369608528,1.16104577,2983.9,2983.8,2.34598]
[1720369608932,1.16104577,2983.9,2983.6,2.34608]
[1720369609152,5.432,2984.1,2983.7,2.34606]
[1720369609449,1.16105757,2984.0,2983.7,2.34606]
[1720369609652,1.16105757,2983.9,2983.7,2.34606]
[1720369609948,6.1323454,2984.1,2983.8,2.346]
[1720369610163,1.16104973,2984.0,2983.9,2.34592]
[1720369611260,1.16104973,2984.0,2983.5,2.34616]
[1720369611440,1.16104973,2983.9,2983.6,2.34614]
[1720369611645,3.7003454,2984.1,2983.7,2.34607]
[1720369611959,1.16104549,2984.0,2983.7,2.34607]
[1720369612127,1.16106234,2983.9,2983.7,2.34607]
[1720369612452,1.16106234,2983.8,2983.7,2.34607]
[1720369613430,1.16106141,2983.8,2983.7,2.34607]
[1720369614524,6.64906141,2983.8,2983.6,2.34609]
[1720369614721,1.16106141,2983.7,2983.6,2.34609]
[1720369614937,3.0,2983.8,2983.7,2.34608]
[1720369615171,4.16108406,2983.8,2983.7,2.34608]
[1720369615375,4.86205058,2983.8,2983.7,2.34608]
[1720369616379,4.16108406,2983.8,2983.7,2.34608]
[1720369617378,5.21253384,2983.8,2983.7,2.34608]
[1720369618225,5.21253236,2983.8,2983.7,2.34608]
[1720369620277,5.21253236,2983.8,2983.7,5.161382]
[1720369620278,2.21253236,2983.8,2983.7,5.161382]
[1720369620490,0.70331317,2983.8,2983.7,5.161382]
[1720369620799,0.70331317,2984.0,2983.9,7.03776]
[1720369621102,0.70331317,2984.3,2984.2,4.69136]
[1720369621378,7.45,2984.6,2984.5,2.34545]
[1720369621583,10.01733563,2984.6,2984.5,2.34545]
[1720369622049,8.61071543,2984.6,2984.5,2.34545]
[1720369622384,9.66513767,2984.6,2984.5,5.159998]
[1720369622681,8.15305114,2984.6,2984.5,5.159998]
[1720369622896,8.15303684,2984.6,2984.5,5.159998]
[1720369624970,7.45,2984.6,2984.5,5.159998]
[1720369625376,8.15303684,2984.6,2984.5,5.159998]
[1720369625585,7.45,2984.6,2984.5,5.159998]
[1720369627271,0.70262037,2984.7,2984.6,4.69074]
[1720369627690,0.70262037,2984.7,2984.6,5.43962436]
[1720369628013,0.70262037,2984.7,2984.6,4.69074]
[1720369628321,1.05428737,2984.8,2984.7,2.34529]
[1720369628871,1.05428737,2984.8,2984.4,2.34547]
[1720369629090,0.70260675,2984.6,2984.5,2.34543]
[1720369629594,0.70260675,2984.7,2984.6,2.34537]
[1720369630274,0.70260675,2984.8,2984.7,4.69058]
[1720369630478,0.70260675,2984.9,2984.8,4.69042]
[1720369630834,0.70260675,2985.2,2985.1,4.68996]
[1720369631177,0.70260675,2985.3,2985.2,4.6898]
[1720369631525,19.39,2985.4,2985.3,2.34482]
[1720369631704,20.09202863,2985.4,2985.3,4.68964]
[1720369632003,19.39,2985.4,2985.3,4.68964]
[1720369632209,0.70202863,2985.6,2985.5,4.68932]
[1720369632375,0.70202863,2985.8,2985.4,0.06698406]
[1720369632570,8.15150603,2985.9,2985.8,2.34443]
[1720369632796,7.45,2985.9,2985.8,2.34443]
[1720369633005,8.1515221,2985.9,2985.8,2.34443]
[1720369633318,7.45,2985.9,2985.8,2.34443]
[1720369635592,7.45,2985.9,2985.6,2.34453]
[1720369635785,7.45,2985.9,2985.2,2.262]
[1720369635786,8.1515221,2985.9,2985.8,2.34443]
[1720369635989,8.1515221,2985.9,2985.6,2.34452]
[1720369636242,0.7015221,2985.9,2985.3,2.34477]
[1720369636386,0.7015221,2985.9,2985.5,2.34465]
[1720369637611,3.0,2985.4,2985.2,2.34484]
[1720369637840,3.0,2985.4,2985.1,2.34491]
[1720369638061,3.0,2985.4,2984.9,4.69017]
[1720369638398,3.7015221,2985.4,2984.9,4.69017]
[1720369638751,3.0,2985.4,2985.0,2.34504]
[1720369638895,3.7015221,2985.4,2985.0,2.34504]
[1720369639103,3.7015221,2985.4,2984.8,2.34516]
[1720369639415,0.7015221,2985.3,2984.8,2.34516]
[1720369639622,0.7015221,2985.3,2984.9,2.34513]
[1720369639826,3.7015221,2985.4,2984.9,4.6902]
[1720369640621,3.7015221,2985.4,2984.9,2.34507]
[1720369640962,3.1956221,2985.3,2984.7,2.34524]
[1720369641109,3.0,2985.1,2984.7,2.34524]
[1720369641319,3.0,2985.1,2984.7,4.69049]
[1720369641609,3.0,2985.1,2984.8,2.34519]
[1720369643216,3.0,2985.1,2984.9,2.34512]
[1720369644248,3.1956221,2985.3,2985.0,2.34505]
[1720369644449,3.7015221,2985.4,2985.0,2.34505]
[1720369644656,3.0,2985.4,2985.0,2.34505]
[1720369645060,3.7015221,2985.4,2984.9,2.34512]
[1720369645955,3.0,2985.1,2984.7,2.34528]
[1720369646149,3.0,2985.1,2984.7,2.34524]
[1720369646317,3.0,2985.1,2984.9,2.34509]
[1720369647357,3.0,2985.1,2984.9,4.69018]
[1720369648317,3.0,2985.1,2984.9,2.34509]
[1720369648823,3.0,2985.1,2985.0,2.34505]
[1720369650417,3.0,2985.1,2984.9,2.34509]
[1720369650638,5.4941,2985.1,2984.9,2.34509]
[1720369651241,5.4941,2985.1,2984.9,4.69017]
[1720369651817,5.4941,2985.1,2984.9,2.34508]
[1720369652942,5.4941,2985.1,2984.7,2.34527]
[1720369652943,5.4941,2985.1,2984.5,2.34541]
[1720369653131,1.16063299,2985.0,2984.6,2.34537]
[1720369653330,1.16063299,2984.9,2984.6,2.34537]
[1720369653530,1.16063299,2985.0,2984.6,2.34537]
[1720369653731,3.0,2984.8,2984.4,2.34545]
[1720369653946,1.16063299,2984.7,2984.4,2.34545]
[1720369654528,1.16063299,2984.7,2984.4,4.69093]
[1720369655320,2.4941,2984.4,2984.0,2.34579]
[1720369655733,2.4941,2984.4,2984.1,2.34571]
[1720369655932,2.4941,2984.4,2984.2,2.34568]
[1720369660044,2.4941,2984.4,2984.0,2.34579]
[1720369660239,3.19520531,2984.4,2984.0,4.69158]
[1720369660420,0.70110531,2984.3,2984.1,2.34573]
[1720369662315,3.54575797,2984.4,2984.2,2.34568]
[1720369662522,0.70177694,2984.3,2984.2,2.34568]
[1720369662922,0.70177852,2984.3,2984.2,2.34568]
[1720369663446,3.54676778,2984.4,2984.2,2.34568]
[1720369664536,1.05266778,2984.3,2984.2,2.34568]
[1720369665855,1.05316789,2984.3,2984.2,2.34568]
[1720369666155,1.05316789,2984.5,2984.4,2.34553]
[1720369666374,9.20527982,2984.8,2984.3,2.3456]
[1720369666375,1.05304338,2984.7,2984.5,2.34545]
[1720369666535,0.70203085,2984.6,2984.5,2.34545]
[1720369666869,0.70203085,2984.7,2984.5,4.6909]
[1720369667159,8.50304338,2984.8,2984.7,2.34529]
[1720369667160,7.45,2984.8,2984.7,2.34529]
[1720369668053,0.70203085,2984.9,2984.8,2.34521]
[1720369668229,0.70203085,2985.0,2984.9,2.34513]
[1720369668435,0.70203085,2985.1,2985.0,2.34505]
[1720369668754,4.05304338,2985.2,2985.1,2.34498]
[1720369668953,5.21360708,2985.2,2985.1,2.34498]
[1720369669450,4.1605637,2985.2,2984.9,2.34506]
[1720369669651,5.21352201,2985.2,2985.1,2.34498]
[1720369669853,4.16055994,2985.2,2985.1,2.34498]
[1720369670782,5.5647838,2985.2,2984.8,4.69037]
[1720369670939,0.70204711,2984.9,2984.8,2.34516]
[1720369671360,1.05307067,2985.1,2984.9,2.34513]
[1720369671542,0.70202617,2985.0,2984.9,2.34513]
[1720369671745,1.05307067,2985.1,2984.9,2.34513]
[1720369672047,1.05304437,2985.1,2984.9,2.34513]
[1720369673233,2.21366983,2985.0,2984.9,2.34513]
[1720369674131,5.2639,2984.9,2984.7,2.34523]
[1720369674340,0.70206343,2984.8,2984.7,2.34523]
[1720369675262,0.70206643,2984.8,2984.7,2.34523]
[1720369675494,0.70206643,2984.8,2984.5,2.3454]
[1720369675495,0.70206643,2984.8,2984.5,2.34538]
[1720369675661,3.70206643,2984.6,2983.7,2.3463]
[1720369675860,3.0,2984.3,2984.1,2.34572]
[1720369676181,0.70206643,2984.2,2983.9,4.69173]
[1720369676352,0.70206643,2984.2,2983.9,2.34586]
[1720369676780,0.70206643,2984.2,2984.0,2.34582]
[1720369676994,0.70206643,2984.1,2984.0,2.34582]
[1720369677186,0.70206643,2984.2,2984.0,2.34582]
[1720369677385,0.70206643,2984.1,2984.0,2.34582]
[1720369677993,0.70206643,2984.1,2983.8,2.34593]
[1720369678588,0.70206643,2984.1,2984.0,2.34584]
[1720369678887,0.70206643,2984.2,2984.0,2.34584]
[1720369679095,0.70206643,2984.2,2984.1,2.34576]
[1720369679293,3.70206643,2984.3,2984.1,2.34576]
[1720369679472,0.70206643,2984.2,2984.1,2.34576]
[1720369679691,0.70206643,2984.2,2984.1,5.160685]
[1720369679889,0.70206643,2984.5,2984.3,2.3456]
[1720369680087,0.70206643,2984.5,2984.4,2.34553]
[1720369680387,11.50309964,2984.7,2984.5,2.34545]
[1720369680607,2.21389405,2984.6,2984.5,2.34545]
[1720369680771,1.16079441,2984.6,2984.5,2.34545]
[1720369680972,2.21433072,2984.6,2984.5,2.34545]
[1720369681199,2.2143129,2984.6,2984.5,2.34545]
[1720369681491,0.70246727,2984.6,2984.5,2.814555]
[1720369682189,8.50350975,2984.7,2984.6,2.34537]
[1720369682378,8.61073868,2984.7,2984.6,2.34537]
[1720369683193,10.01544211,2984.7,2984.6,2.34537]
[1720369683770,2.56544211,2984.7,2984.6,2.34537]
[1720369683998,2.56544593,2984.7,2984.6,2.34537]
[1720369684178,2.56544355,2984.7,2984.6,2.34537]
[1720369684791,2.21507371,2984.7,2984.6,2.34537]
[1720369685014,1.40470343,2984.8,2984.6,2.34537]
[1720369685372,2.56544807,2984.7,2984.6,2.34537]
[1720369685563,1.40470343,2984.7,2984.6,2.34537]
[1720369685781,4.23571405,2984.9,2984.7,2.34529]
[1720369685782,1.05431624,2984.8,2984.7,2.34529]
[1720369685981,1.40470343,2984.9,2984.8,2.34521]
[1720369686296,4.40470343,2985.0,2984.8,2.34521]
[1720369686491,1.40470343,2984.9,2984.8,2.34521]
[1720369687422,3.0,2985.0,2984.8,2.34521]
[1720369687561,1.4058013,2984.9,2984.8,2.34521]
[1720369688193,1.4058013,2985.1,2984.9,2.34513]
[1720369688374,1.4058013,2985.0,2984.9,2.34513]
[1720369689682,1.4058013,2985.0,2984.7,2.34529]
[1720369689683,5.5664036,2985.0,2984.7,4.69053]
[1720369690011,1.05433374,2984.8,2984.7,2.34524]
[1720369690540,1.05433374,2984.8,2984.7,4.69053]
[1720369691862,1.4058013,2984.9,2984.7,2.34524]
[1720369692079,1.05441316,2984.8,2984.7,2.34524]
[1720369692370,1.4058013,2984.9,2984.7,2.34524]
[1720369692371,3.8843013,2984.9,2984.7,2.34524]
[1720369692608,3.8843013,2984.9,2984.8,2.34521]
[1720369692918,5.04497502,2984.9,2984.8,2.34521]